bitfinex/quotes_SOLUSD_20250307
["timestamp","ask_amount","ask_price","bid_price","bid_amount"]
[1741390070186,34.21991743,138.52,138.46,34.21991743]
[1741390070386,34.21991743,138.52,138.45,34.21991743]
[1741390070604,34.21991743,138.52,138.46,34.21991743]
[1741390070785,7.2194,138.52,138.46,34.21991743]
[1741390070991,41.43931743,138.52,138.46,34.21991743]
[1741390071486,34.21991743,138.51,138.45,34.21991743]
[1741390072026,59.48721743,138.52,138.45,34.21991743]
[1741390072212,7.2518,138.53,138.47,34.21991743]
[1741390072703,0.033,138.53,138.5,34.21991743]
[1741390072907,0.033,138.53,138.49,34.21991743]
[1741390073284,0.033,138.53,138.51,34.21991743]
[1741390073481,0.033,138.53,138.47,18.64964886]
[1741390073482,0.033,138.53,138.52,34.21991743]
[1741390075116,0.033,138.53,138.52,41.43901743]
[1741390076398,0.0001,138.53,138.52,94.30858372]
[1741390076710,0.0001,138.54,138.53,18.64964886]
[1741390076899,0.033,138.63,138.53,87.08948372]
[1741390077098,0.033,138.63,138.59,34.21991743]
[1741390077300,0.033,138.63,138.6,34.21991743]
[1741390078726,0.033,138.63,138.58,34.21991743]
[1741390079235,34.25291743,138.63,138.56,34.21991743]
[1741390079519,34.21991743,138.62,138.56,34.21991743]
[1741390079718,34.21991743,138.61,138.55,34.21991743]
[1741390079901,34.21991743,138.6,138.54,41.43801743]
[1741390080102,34.21991743,138.61,138.55,34.21991743]
[1741390080423,0.033,138.63,138.57,34.21991743]
[1741390080593,0.033,138.63,138.58,7.216]
[1741390080799,0.033,138.63,138.57,34.21991743]
[1741390080800,34.25291743,138.63,138.57,34.21991743]
[1741390081017,34.21991743,138.61,138.55,41.43741743]
[1741390081324,34.21991743,138.62,138.56,34.21991743]
[1741390081619,34.21991743,138.61,138.55,34.21991743]
[1741390081799,34.21991743,138.62,138.56,34.21991743]
[1741390081999,34.21991743,138.61,138.55,34.21991743]
[1741390082817,34.21991743,138.57,138.52,163.539]
[1741390083027,34.21991743,138.57,138.52,156.32]
[1741390083323,9.38616847,138.6,138.52,156.32]
[1741390083523,34.21991743,138.57,138.52,156.32]
[1741390083694,18.64964886,138.59,138.52,163.539]
[1741390083897,34.21991743,138.54,138.52,156.32]
[1741390084117,34.21991743,138.53,138.52,156.32]
[1741390084420,34.21991743,138.54,138.52,156.32]
[1741390084723,41.43761743,138.55,138.52,156.32]
[1741390085300,34.21991743,138.53,138.52,156.32]
[1741390085724,41.43761743,138.55,138.52,156.32]
[1741390085907,34.21991743,138.53,138.49,0.03]
[1741390086302,34.21991743,138.52,138.49,0.03]
[1741390086824,34.21991743,138.5,138.49,0.03]
[1741390086999,43.3196859,138.5,138.49,0.03]
[1741390087203,42.23991743,138.5,138.49,0.03]
[1741390087617,81.59448966,138.51,138.49,0.03]
[1741390088222,7.2187,138.53,138.49,0.03]
[1741390088729,42.5179859,138.54,138.49,0.03]
[1741390089025,34.21991743,138.53,138.49,0.03]
[1741390089426,42.5179859,138.54,138.49,0.03]
[1741390089724,34.21991743,138.53,138.49,0.03]
[1741390089927,33.71991743,138.53,138.49,0.03]
[1741390090727,34.21991743,138.53,138.49,0.03]
[1741390091102,8.29806847,138.54,138.49,0.03]
[1741390091103,34.21991743,138.52,138.49,0.03]
[1741390091320,34.21991743,138.5,138.49,0.03]
[1741390092911,41.44011743,138.5,138.49,0.03]
[1741390093308,41.43961743,138.51,138.49,0.03]
[1741390093610,34.21991743,138.52,138.49,0.03]
[1741390093916,115.81440709,138.53,138.49,0.03]
[1741390094123,81.59448966,138.52,138.49,0.03]
[1741390095214,81.59448966,138.52,138.49,34.24991743]
[1741390096245,81.59448966,138.52,138.5,7.2202]
[1741390096814,81.59448966,138.52,138.49,34.24991743]
[1741390096815,81.59448966,138.55,138.49,34.24991743]
[1741390097016,81.59448966,138.54,138.49,41.47051743]
[1741390097219,81.59448966,138.54,138.51,34.21991743]
[1741390097427,81.59448966,138.58,138.52,34.21991743]
[1741390098348,81.59448966,138.58,138.55,34.21991743]
[1741390098528,8.02,138.6,138.55,34.21991743]
[1741390099047,81.62748966,138.62,138.57,34.21991743]
[1741390099335,81.62748966,138.62,138.52,5.0075]
[1741390099336,34.21991743,138.59,138.52,5.0075]
[1741390099519,34.21991743,138.57,138.5,34.21991743]
[1741390099712,34.21991743,138.58,138.51,34.21991743]
[1741390100114,34.21991743,138.58,138.52,34.21991743]
[1741390100315,0.033,138.54,138.53,7.2186]
[1741390100520,0.033,138.62,138.54,10.3049]
[1741390100720,0.033,138.62,138.57,34.21991743]
[1741390100721,7.247,138.62,138.57,34.21991743]
[1741390100928,7.247,138.62,138.56,34.21991743]
[1741390101112,41.46691743,138.62,138.56,34.21991743]
[1741390102243,41.46691743,138.62,138.56,41.43681743]
[1741390103227,0.033,138.62,138.57,34.21991743]
[1741390103420,0.033,138.62,138.58,34.21991743]
[1741390104638,0.033,138.62,138.56,7.2169]
[1741390104639,0.033,138.62,138.59,34.21991743]
[1741390105031,0.033,138.62,138.56,41.43681743]
[1741390105828,0.033,138.62,138.57,34.21991743]
[1741390106349,0.033,138.62,138.58,41.43581743]
[1741390107136,0.033,138.62,138.59,34.21991743]
[1741390107336,34.25291743,138.62,138.55,197.79731743]
[1741390107544,34.21991743,138.61,138.55,163.5774]
[1741390107828,34.21991743,138.61,138.55,197.79731743]
[1741390108041,34.21991743,138.6,138.55,163.5774]
[1741390108437,0.033,138.62,138.55,163.5774]
[1741390108438,41.43471743,138.61,138.55,163.5774]
[1741390108633,41.46701743,138.62,138.55,197.79731743]
[1741390108834,0.033,138.62,138.57,34.21991743]
[1741390109227,7.2471,138.62,138.55,181.6214]
[1741390109448,41.46701743,138.62,138.55,197.79731743]
[1741390109827,41.46701743,138.62,138.56,34.21991743]
[1741390110245,7.2471,138.62,138.56,34.21991743]
[1741390111361,34.21991743,138.59,138.55,156.36]
[1741390111533,115.81440709,138.58,138.55,156.36]
[1741390112070,81.59448966,138.58,138.55,156.36]
[1741390112751,7.2165,138.57,138.55,156.36]
[1741390112937,81.59448966,138.58,138.55,156.36]
[1741390113551,123.03040709,138.58,138.55,156.36]
[1741390114254,34.21991743,138.57,138.55,156.36]
[1741390114432,123.03040709,138.58,138.55,156.36]
[1741390114637,34.21991743,138.57,138.55,156.36]
[1741390114841,41.43681743,138.57,138.55,156.36]
[1741390115433,88.81068966,138.58,138.55,156.36]
[1741390116043,123.03060709,138.58,138.55,156.36]
[1741390116243,81.59448966,138.57,138.55,156.36]
[1741390116446,78.59448966,138.57,138.55,156.36]
[1741390117944,78.59448966,138.56,138.55,156.36]
[1741390118142,34.21991743,138.56,138.55,156.36]
[1741390118343,41.43651743,138.57,138.55,156.36]
[1741390119163,7.2166,138.57,138.55,156.36]
[1741390119365,34.21991743,138.56,138.55,156.36]
[1741390120964,41.43651743,138.57,138.55,156.36]
[1741390121166,34.21991743,138.56,138.55,156.36]
[1741390121373,7.2166,138.57,138.55,156.36]
[1741390121555,41.43651743,138.57,138.55,156.36]
[1741390121754,34.21991743,138.56,138.55,156.36]
[1741390122438,34.21991743,138.56,138.49,0.03]
[1741390122653,34.21991743,138.53,138.49,0.03]
[1741390123059,34.21991743,138.54,138.49,0.03]
[1741390123260,34.21991743,138.54,138.49,7.2505]
[1741390123543,42.23991743,138.55,138.49,41.47041743]
[1741390123748,42.23991743,138.55,138.49,7.2505]
[1741390123749,49.45761743,138.55,138.49,7.2505]
[1741390124053,42.23991743,138.55,138.49,7.2505]
[1741390124469,49.45751743,138.55,138.49,7.2505]
[1741390124664,34.21991743,138.54,138.49,7.2505]
[1741390125261,42.23991743,138.55,138.49,7.2505]
[1741390125453,42.23991743,138.55,138.49,34.24991743]
[1741390127774,42.23991743,138.55,138.5,7.2202]
[1741390128270,82.3,138.52,138.5,7.2202]
[1741390129470,116.51991743,138.51,138.49,0.03]
[1741390129660,41.44011743,138.5,138.49,0.03]
[1741390129862,50.0,138.55,138.49,0.03]
[1741390130074,34.96751733,138.54,138.49,0.03]
[1741390130264,34.21991743,138.52,138.49,0.03]
[1741390131379,34.21991743,138.51,138.49,0.03]
[1741390131555,34.21991743,138.5,138.49,0.03]
[1741390131954,41.43991743,138.51,138.49,0.03]
[1741390133686,7.22,138.51,138.49,0.03]
[1741390135357,41.43991743,138.51,138.49,0.03]
[1741390135565,60.08976629,138.5,138.49,0.03]
[1741390135775,18.64964886,138.48,138.42,9.15]
[1741390135973,18.64964886,138.48,138.4,38.91411743]
[1741390135974,34.21991743,138.46,138.4,38.91411743]
[1741390136472,34.21991743,138.47,138.41,34.21991743]
[1741390136670,72.35313534,138.49,138.43,34.21991743]
[1741390136671,53.94933476,138.49,138.43,34.21991743]
[1741390136880,34.21991743,138.49,138.43,34.21991743]
[1741390137381,35.2996859,138.51,138.45,34.21991743]
[1741390137675,7.2191,138.52,138.47,34.21991743]
[1741390138090,82.3,138.52,138.47,34.21991743]
[1741390138458,116.51991743,138.52,138.46,34.21991743]
[1741390138797,34.21991743,138.5,138.43,34.21991743]
[1741390138981,34.21991743,138.49,138.43,34.21991743]
[1741390139285,82.3,138.48,138.43,34.21991743]
[1741390139680,82.3,138.48,138.44,34.21991743]
[1741390140278,82.3,138.48,138.43,7.2238]
[1741390140577,82.3,138.48,138.45,34.21991743]
[1741390140785,82.3,138.48,138.46,34.21991743]
[1741390140971,82.3,138.51,138.46,34.21991743]
[1741390141277,82.3,138.51,138.46,21.4165275]
[1741390142259,82.3,138.51,138.48,21.4165275]
[1741390142475,82.3,138.51,138.46,31.1610275]
[1741390143889,82.3,138.51,138.47,21.4165275]
[1741390144465,82.3,138.51,138.46,31.1610275]
[1741390145977,89.5197,138.51,138.46,9.7445]
[1741390146279,82.3,138.51,138.46,9.7445]
[1741390146590,82.3,138.51,138.46,31.1610275]
[1741390146783,110.9363275,138.51,138.46,9.7445]
[1741390146962,82.3,138.51,138.46,9.7445]
[1741390147270,82.3,138.51,138.46,31.1610275]
[1741390147471,82.3,138.51,138.47,21.4165275]
[1741390147985,103.7165275,138.54,138.47,21.4165275]
[1741390148170,110.9348275,138.54,138.47,28.6382275]
[1741390148374,110.9348275,138.54,138.48,21.4165275]
[1741390148577,21.4165275,138.53,138.46,31.1610275]
[1741390148884,21.4165275,138.5,138.46,9.7445]
[1741390149277,21.4165275,138.5,138.46,9.7745]
[1741390149474,1.07976847,138.53,138.46,0.03]
[1741390149475,21.4165275,138.49,138.46,0.03]
[1741390149865,21.4165275,138.5,138.46,0.03]
[1741390150271,28.6372275,138.49,138.46,0.03]
[1741390150466,82.333,138.51,138.46,21.4465275]
[1741390150771,82.333,138.51,138.47,21.4165275]
[1741390150978,0.033,138.51,138.47,21.4165275]
[1741390151579,0.033,138.51,138.48,21.4165275]
[1741390151975,0.033,138.51,138.47,21.4165275]
[1741390152177,0.033,138.51,138.46,21.4465275]
[1741390152375,0.033,138.51,138.46,0.03]
[1741390153162,0.033,138.51,138.46,28.6687275]
[1741390153390,0.033,138.51,138.47,21.4165275]
[1741390154297,0.033,138.51,138.48,21.4165275]
[1741390154670,0.033,138.51,138.49,21.4165275]
[1741390155470,0.033,138.51,138.48,26.1444275]
[1741390155671,0.033,138.51,138.48,33.3653275]
[1741390155875,0.033,138.51,138.49,21.4165275]
[1741390156079,0.033,138.51,138.49,31.3569275]
[1741390156892,0.033,138.51,138.49,9.9404]
[1741390158987,0.033,138.51,138.48,156.36]
[1741390158988,28.6691275,138.51,138.48,156.36]
[1741390159294,7.2526,138.51,138.48,156.36]
[1741390159591,0.033,138.51,138.48,177.7765275]
[1741390159799,0.033,138.51,138.48,184.9977275]
[1741390159976,0.033,138.51,138.48,177.7765275]
[1741390160176,0.033,138.51,138.48,156.36]
[1741390161196,0.033,138.51,138.47,28.6378275]
[1741390161197,134.6,138.45,138.39,11.30024044]
[1741390161372,21.4165275,138.41,138.39,11.30024044]
[1741390161577,1.07976847,138.44,138.39,11.30024044]
[1741390161874,21.4165275,138.42,138.39,11.30024044]
[1741390162077,21.4165275,138.42,138.36,0.103318]
[1741390162695,21.4165275,138.42,138.36,21.5198455]
[1741390162886,21.4165275,138.43,138.36,21.5198455]
[1741390163087,21.4165275,138.42,138.36,0.103318]
[1741390163284,34.31953597,138.41,138.36,0.103318]
[1741390163798,34.31953597,138.4,138.36,0.103318]
[1741390164589,34.31953597,138.42,138.36,0.103318]
[1741390165373,34.31953597,138.43,138.36,34.42285397]
[1741390165793,34.31953597,138.42,138.36,0.103318]
[1741390166399,34.31953597,138.43,138.36,34.42285397]
[1741390166606,9.07976847,138.45,138.36,34.42285397]
[1741390166792,34.31953597,138.43,138.36,34.42285397]
[1741390167402,34.31953597,138.43,138.37,34.31953597]
[1741390170294,34.31953597,138.43,138.36,41.65025397]
[1741390170688,82.3,138.44,138.36,41.65025397]
[1741390170879,82.3,138.44,138.37,34.31953597]
[1741390171084,34.31953597,138.43,138.37,34.31953597]
[1741390172097,34.31953597,138.43,138.37,41.54623597]
[1741390172797,34.31953597,138.41,138.36,0.103318]
[1741390173412,34.31953597,138.4,138.36,0.103318]
[1741390173609,34.31953597,138.41,138.36,0.103318]
[1741390173815,82.3,138.43,138.36,0.103318]
[1741390173816,34.31953597,138.42,138.36,41.65025397]
[1741390173994,82.3,138.43,138.38,7.2264]
[1741390174303,82.3,138.43,138.38,41.54593597]
[1741390175308,116.61953597,138.43,138.37,34.34953597]
[1741390175483,116.61953597,138.43,138.37,7.2569]
[1741390175888,116.61953597,138.43,138.37,41.57643597]
[1741390176089,116.65253597,138.46,138.39,42.99873597]
[1741390176300,82.3,138.45,138.4,34.31953597]
[1741390176919,0.033,138.46,138.43,34.31953597]
[1741390177089,0.033,138.46,138.44,34.31953597]
[1741390177499,0.033,138.46,138.45,34.31953597]
[1741390178021,0.033,138.46,138.45,41.54233597]
[1741390179099,0.033,138.46,138.45,47.67173597]
[1741390179421,0.033,138.51,138.46,18.64964886]
[1741390179595,0.033,138.51,138.49,34.31953597]
[1741390179799,0.033,138.51,138.5,34.31953597]
[1741390181419,0.033,138.51,138.5,41.53973597]
[1741390182508,0.033,138.51,138.5,7.2202]
[1741390183003,0.033,138.51,138.47,34.31953597]
[1741390183209,34.35253597,138.51,138.46,163.6621]
[1741390183421,34.35253597,138.51,138.46,156.44]
[1741390184328,34.35253597,138.51,138.46,163.662]
[1741390184525,0.033,138.51,138.46,197.98153597]
[1741390185840,0.033,138.51,138.48,34.31953597]
[1741390186128,0.033,138.51,138.5,34.31953597]
[1741390186626,0.033,138.51,138.5,52.96918483]
[1741390187907,0.033,138.51,138.5,60.18938483]
[1741390188926,0.033,138.57,138.52,18.64964886]
[1741390189141,0.033,138.57,138.55,34.31953597]
[1741390189813,0.033,138.57,138.55,7.2176]
[1741390191923,0.033,138.57,138.55,41.53713597]
[1741390192127,0.033,138.57,138.55,7.2176]
[1741390192433,0.033,138.57,138.55,41.53713597]
[1741390192626,0.033,138.57,138.56,34.31953597]
[1741390194127,0.033,138.57,138.56,60.18618483]
[1741390194312,0.033,138.59,138.56,69.8383946]
[1741390194513,0.033,138.59,138.58,52.96918483]
[1741390195334,0.033,138.59,138.57,156.32]
[1741390195335,0.033,138.59,138.57,190.63953597]
[1741390195832,0.033,138.59,138.57,156.32]
[1741390197418,0.033,138.59,138.58,34.31953597]
[1741390197611,0.033,138.59,138.57,156.32]
[1741390197612,0.033,138.59,138.57,197.85603597]
[1741390198018,0.033,138.59,138.57,156.32]
[1741390198823,34.35253597,138.59,138.57,156.32]
[1741390199140,0.033,138.59,138.57,156.32]
[1741390199443,0.033,138.59,138.58,34.31953597]
[1741390199829,0.033,138.59,138.57,197.85593597]
[1741390200022,0.033,138.59,138.57,190.63953597]
[1741390200221,0.033,138.59,138.57,197.85603597]
[1741390200423,0.033,138.59,138.57,156.32]
[1741390201426,0.033,138.59,138.58,34.31953597]
[1741390202153,0.033,138.59,138.58,52.96918483]
[1741390202343,0.033,138.59,138.58,60.18518483]
[1741390202639,0.033,138.59,138.58,7.216]
[1741390202829,0.033,138.59,138.58,41.53553597]
[1741390204643,0.033,138.59,138.58,34.31953597]
[1741390204833,0.033,138.59,138.58,41.53553597]
[1741390205562,0.033,138.59,138.57,156.32]
[1741390206743,0.033,138.59,138.57,163.5365]
[1741390206925,0.033,138.59,138.58,34.31953597]
[1741390207121,0.033,138.59,138.57,190.63953597]
[1741390207660,0.033,138.59,138.57,156.32]
[1741390208651,0.033,138.59,138.57,197.85593597]
[1741390209664,0.033,138.59,138.57,156.32]
[1741390211341,0.033,138.59,138.57,184.91904898]
[1741390211952,0.033,138.59,138.57,156.32]
[1741390215325,0.033,138.59,138.57,177.70264898]
[1741390215735,0.033,138.59,138.57,156.32]
[1741390216237,0.033,138.59,138.57,163.5364]
[1741390216637,0.033,138.59,138.57,184.91904898]
[1741390217060,0.033,138.59,138.57,177.70264898]
[1741390217241,0.033,138.59,138.57,156.32]
[1741390217757,0.033,138.59,138.57,163.5365]
[1741390217954,0.033,138.59,138.57,184.91914898]
[1741390218336,0.033,138.59,138.57,28.59914898]
[1741390219457,0.033,138.59,138.56,28.62944898]
[1741390221360,0.033,138.59,138.57,21.38264898]
[1741390221659,0.033,138.59,138.58,21.38264898]
[1741390222360,0.033,138.59,138.58,40.03229784]
[1741390223456,0.033,138.59,138.58,47.24829784]
[1741390223635,0.033,138.59,138.58,55.68159784]
[1741390224038,0.0001,138.59,138.58,55.68159784]
[1741390226064,0.0001,138.59,138.57,7.2163]
[1741390226241,0.0001,138.59,138.57,21.38264898]
[1741390226661,0.0001,138.59,138.56,7.2469]
[1741390226962,0.0001,138.59,138.57,21.38264898]
[1741390227366,0.0001,138.59,138.56,28.62954898]
[1741390228157,0.0001,138.59,138.57,21.38264898]
[1741390228666,0.0001,138.59,138.56,21.41264898]
[1741390228851,0.0001,138.59,138.56,0.03]
[1741390229040,21.38274898,138.59,138.56,0.03]
[1741390230052,0.0001,138.59,138.57,21.38264898]
[1741390230250,0.0001,138.59,138.58,21.38264898]
[1741390230451,0.0001,138.59,138.58,47.99229784]
[1741390230752,0.0001,138.59,138.58,63.64159784]
[1741390231876,0.033,138.62,138.59,18.64964886]
[1741390232044,0.033,138.62,138.61,40.03229784]
[1741390232543,0.0001,138.62,138.61,40.03229784]
[1741390232750,0.0001,138.62,138.61,47.24669784]
[1741390232950,0.033,138.63,138.61,47.24669784]
[1741390233262,0.033,138.63,138.62,41.11381428]
[1741390233437,0.033,138.67,138.65,8.4333]
[1741390233641,0.033,138.71,138.66,70.45626065]
[1741390233845,0.033,138.71,138.7,40.03229784]
[1741390234754,0.033,138.71,138.7,47.24209784]
[1741390235158,0.033,138.71,138.7,21.38264898]
[1741390235367,0.033,138.71,138.69,32.68288942]
[1741390235549,21.41564898,138.75,138.69,32.68288942]
[1741390236277,21.41564898,138.75,138.69,21.38264898]
[1741390236461,21.41564898,138.75,138.67,7.96]
[1741390236462,7.2405,138.75,138.7,21.38264898]
[1741390236859,0.033,138.75,138.72,21.38264898]
[1741390237059,0.033,138.75,138.69,18.64964886]
[1741390237060,0.033,138.75,138.74,21.38264898]
[1741390238373,0.033,138.75,138.69,18.64964886]
[1741390238554,0.033,138.75,138.7,21.38264898]
[1741390238973,0.033,138.75,138.71,21.38264898]
[1741390239177,0.033,138.75,138.72,21.38264898]
[1741390239668,0.033,138.75,138.71,21.38264898]
[1741390240172,0.033,138.75,138.7,21.38264898]
[1741390240573,28.62284898,138.75,138.69,21.38264898]
[1741390240880,46.64084898,138.75,138.68,21.38264898]
[1741390241075,46.64084898,138.75,138.69,21.38264898]
[1741390242091,7.2402,138.75,138.71,21.38264898]
[1741390244373,7.2402,138.75,138.7,21.38264898]
[1741390246298,7.2402,138.75,138.71,21.38264898]
[1741390246473,7.2402,138.75,138.7,21.38264898]
[1741390249874,7.2402,138.75,138.68,177.54264898]
[1741390249875,46.64084898,138.75,138.68,177.54264898]
[1741390250074,21.38264898,138.74,138.68,177.54264898]
[1741390250273,82.3,138.73,138.68,156.16]
[1741390250472,82.3,138.73,138.69,21.38264898]
[1741390250672,103.68264898,138.72,138.68,156.16]
[1741390250878,82.3,138.72,138.68,156.16]
[1741390251273,82.3,138.72,138.68,184.75334898]
[1741390251673,82.3,138.72,138.68,177.54264898]
[1741390251989,82.3,138.72,138.68,184.75334898]
[1741390252176,82.3,138.72,138.68,163.3707]
[1741390252385,82.3,138.72,138.68,156.16]
[1741390252671,21.41564898,138.75,138.69,21.38264898]
[1741390252877,7.2079,138.74,138.69,21.38264898]
[1741390253070,0.033,138.75,138.69,21.38264898]
[1741390253277,7.2404,138.75,138.7,21.38264898]
[1741390253483,7.2404,138.75,138.71,21.38264898]
[1741390253886,7.2404,138.75,138.7,21.38264898]
[1741390255288,7.2404,138.75,138.7,28.59224898]
[1741390256290,0.033,138.75,138.71,21.38264898]
[1741390257492,0.033,138.75,138.72,21.38264898]
[1741390257995,6.7722,138.77,138.72,21.38264898]
[1741390258598,7.2056,138.78,138.72,28.59104898]
[1741390259475,82.3,138.79,138.72,28.59104898]
[1741390259680,0.033,138.77,138.75,21.38264898]
[1741390260096,81.333,138.79,138.75,21.38264898]
[1741390261307,81.333,138.79,138.75,28.58954898]
[1741390262803,21.38264898,138.77,138.71,28.59164898]
[1741390263000,102.71564898,138.78,138.71,28.59164898]
[1741390263187,81.333,138.78,138.74,21.38264898]
[1741390263382,21.38264898,138.77,138.71,21.38264898]
[1741390263577,102.71564898,138.76,138.7,28.59224898]
[1741390264400,81.333,138.76,138.72,21.38264898]
[1741390264603,81.333,138.76,138.73,21.38264898]
[1741390265575,88.5397,138.76,138.71,28.59164898]
[1741390265778,88.5397,138.76,138.71,21.38264898]
[1741390266588,81.333,138.76,138.72,21.38264898]
[1741390266791,81.333,138.76,138.73,21.38264898]
[1741390266991,81.333,138.76,138.74,21.38264898]
[1741390267304,21.38264898,138.8,138.73,28.59074898]
[1741390267495,102.71564898,138.79,138.73,28.59074898]
[1741390268205,81.333,138.78,138.72,184.69114898]
[1741390268404,81.333,138.78,138.72,177.48264898]
[1741390269288,81.333,138.78,138.74,21.38264898]
[1741390270108,128.66974898,138.78,138.72,156.1]
[1741390270304,22.46241745,138.77,138.72,156.1]
[1741390270621,21.38264898,138.76,138.72,156.1]
[1741390270779,22.46241745,138.77,138.72,156.1]
[1741390271396,7.2066,138.76,138.74,0.03]
[1741390272586,88.5396,138.76,138.74,0.03]
[1741390272907,102.71564898,138.75,138.74,0.03]
[1741390273406,66.33726631,138.75,138.69,0.03]
[1741390273620,21.38264898,138.72,138.69,0.03]
[1741390273902,82.3,138.71,138.69,0.03]
[1741390275512,89.5098,138.7,138.69,0.03]
[1741390275687,110.89244898,138.7,138.69,0.03]
[1741390277223,50.0,138.69,138.61,4.4211]
[1741390277410,21.38264898,138.65,138.61,0.03]
[1741390277585,110.89554898,138.64,138.61,0.03]
[1741390277786,103.68264898,138.63,138.61,0.03]
[1741390278508,82.3,138.63,138.61,0.03]
[1741390278700,103.68264898,138.63,138.61,0.03]
[1741390279104,82.3,138.63,138.61,0.03]
[1741390281416,82.3,138.68,138.62,21.38264898]
[1741390281622,82.3,138.68,138.64,21.38264898]
[1741390283096,82.3,138.68,138.63,21.38264898]
[1741390283395,21.38264898,138.64,138.61,0.03]
[1741390283611,21.38264898,138.62,138.61,0.03]
[1741390284006,90.59346847,138.63,138.61,0.03]
[1741390284007,82.3,138.63,138.61,0.03]
[1741390284208,20.0598,138.66,138.61,0.03]
[1741390284407,21.38264898,138.64,138.61,0.03]
[1741390285210,21.13956847,138.66,138.61,0.03]
[1741390285211,21.38264898,138.62,138.61,0.03]
[1741390285612,129.54619784,138.62,138.61,0.03]
[1741390286020,130.62596631,138.62,138.61,0.03]
[1741390286223,111.97631745,138.62,138.61,0.03]
[1741390286525,110.89654898,138.62,138.61,0.03]
[1741390286921,21.38264898,138.65,138.61,0.03]
[1741390287137,118.81454898,138.66,138.61,0.03]
[1741390287628,118.81454898,138.66,138.61,7.2444]
[1741390288227,21.38264898,138.65,138.61,0.03]
[1741390288651,103.68264898,138.64,138.61,0.03]
[1741390288849,21.38264898,138.63,138.61,0.03]
[1741390289228,34.20839995,138.63,138.61,0.03]
[1741390289414,116.50839995,138.64,138.61,0.03]
[1741390289632,7.2134,138.63,138.61,0.03]
[1741390290026,123.72149995,138.64,138.61,0.03]
[1741390290446,34.20839995,138.63,138.61,0.03]
[1741390292021,41.42219995,138.63,138.61,0.03]
[1741390292726,34.20839995,138.62,138.61,0.03]
[1741390293642,41.42179995,138.63,138.61,0.03]
[1741390295628,82.3,138.64,138.61,0.03]
[1741390295629,123.72149995,138.64,138.61,0.03]
[1741390297538,34.20839995,138.63,138.61,0.03]
[1741390297744,41.42179995,138.63,138.61,0.03]
[1741390299356,116.50839995,138.62,138.61,0.03]
[1741390299526,136.23781728,138.62,138.61,0.03]
[1741390299921,117.58816842,138.62,138.61,0.03]
[1741390300132,116.50839995,138.62,138.61,0.03]
[1741390300739,123.72229995,138.62,138.61,0.03]
[1741390301338,60.07194881,138.62,138.61,0.03]
[1741390301941,41.42229995,138.62,138.61,0.03]
[1741390302341,60.07194881,138.62,138.61,0.03]
[1741390302536,110.07194881,138.62,138.61,0.03]
[1741390303339,41.42229995,138.62,138.61,0.03]
[1741390303741,144.28034876,138.62,138.56,0.03]
[1741390303944,34.20839995,138.57,138.56,0.03]
[1741390304849,52.85804881,138.57,138.56,0.03]
[1741390305041,61.15431728,138.57,138.56,0.0001]
[1741390306752,18.64964886,138.56,138.49,156.26]
[1741390307058,34.20839995,138.51,138.49,156.26]
[1741390307839,34.20839995,138.5,138.47,0.03]
[1741390308055,34.20839995,138.48,138.47,0.03]
[1741390308431,34.20839995,138.5,138.47,0.03]
[1741390308853,34.20839995,138.51,138.47,0.03]
[1741390309055,82.3,138.52,138.47,41.46009995]
[1741390309633,82.3,138.52,138.47,7.2517]
[1741390309861,34.20839995,138.49,138.47,0.03]
[1741390310060,34.20839995,138.5,138.47,0.03]
[1741390310354,34.20839995,138.51,138.47,0.03]
[1741390310555,34.20839995,138.5,138.47,0.03]
[1741390311462,28.64300259,138.5,138.47,0.03]
[1741390311953,21.42260259,138.49,138.47,0.03]